fUSD/lending_fUSD_20260417
["ID","MTS","AMOUNT","RATE_DAILY","PERIOD"]
[420642833,1776407432183,-500.0,9.288e-05,2]
[420642834,1776407432192,-500.0,9.288e-05,2]
[420642835,1776407432202,-500.0,9.288e-05,2]
[420642836,1776407432211,-500.0,9.288e-05,2]
[420642837,1776407432221,-500.0,9.288e-05,2]
[420642838,1776407432231,-500.0,9.288e-05,2]
[420642839,1776407432240,-500.0,9.288e-05,2]
[420642840,1776407432251,-500.0,9.288e-05,2]
[420642841,1776407432260,-500.0,9.288e-05,2]
[420642842,1776407432269,-500.0,9.288e-05,2]
[420642843,1776407432278,-500.0,9.288e-05,2]
[420642844,1776407432288,-500.0,9.288e-05,2]
[420642845,1776407432297,-500.0,9.288e-05,2]
[420642846,1776407432307,-500.0,9.288e-05,2]
[420642847,1776407432318,-500.0,9.288e-05,2]
[420642848,1776407432328,-500.0,9.288e-05,2]
[420642849,1776407432338,-500.0,9.288e-05,2]
[420642850,1776407432347,-500.0,9.288e-05,2]
[420642851,1776407432357,-500.0,9.288e-05,2]
[420642852,1776407432366,-500.0,9.288e-05,2]
[420642853,1776407432375,-500.0,9.288e-05,2]
[420642854,1776407432385,-500.0,9.288e-05,2]
[420642855,1776407432394,-500.0,9.288e-05,2]
[420642856,1776407432405,-500.0,9.288e-05,2]
[420642857,1776407432414,-500.0,9.288e-05,2]
[420642858,1776407432423,-500.0,9.288e-05,2]
[420642859,1776407432433,-500.0,9.288e-05,2]
[420642860,1776407432442,-500.0,9.288e-05,2]
[420642861,1776407432452,-500.0,9.288e-05,2]
[420642862,1776407432461,-500.0,9.288e-05,2]
[420642863,1776407432470,-500.0,9.288e-05,2]
[420642864,1776407432479,-500.0,9.288e-05,2]
[420642865,1776407432488,-498.13977832,9.288e-05,2]
[420642866,1776407432498,-333.12664203,9.288e-05,2]
[420642867,1776407432507,-44192.82010083,9.289e-05,2]
[420642868,1776407432520,-12553.2375407,9.289e-05,2]
[420642869,1776407432549,-2520.82143017,9.289e-05,2]
[420642870,1776407432563,-280.0,9.289e-05,2]
[420642934,1776407439711,-151.0,9.286e-05,2]
[420642935,1776407439721,-348.40535172,9.289e-05,2]
[420642937,1776407439752,-54069.72108353,9.289e-05,2]
[420642938,1776407439765,-42357.35242812,9.289e-05,2]
[420642939,1776407439777,-111356.62397354,9.289e-05,2]
[420642941,1776407440136,-6324.57743715,9.289e-05,2]
[420642968,1776407442872,-340871.26269587,9.289e-05,2]
[420642969,1776407443219,-268.21142172,9.289e-05,2]
[420642980,1776407445743,-7127.2325265,9.289e-05,2]
[420642981,1776407445804,-3276.80224774,9.289e-05,2]
[420642982,1776407445859,-136212.86010957,9.289e-05,2]
[420642983,1776407445915,-761.72639936,9.289e-05,2]
[420642985,1776407685336,150.0,8.223e-05,2]
[420642986,1776407711239,157.0,8.223e-05,3]
[420642987,1776407711579,355.0,8.223e-05,3]
[420642988,1776407718717,163.0,8.223e-05,3]
[420642989,1776407778045,163.0,8.223e-05,3]
[420642990,1776407804909,150.0,8.234e-05,2]
[420642991,1776407827279,338.0,8.223e-05,3]
[420642992,1776407833867,163.0,8.223e-05,3]
[420642993,1776407873696,150.0,8.22e-05,2]
[420642994,1776407887191,321.0,8.223e-05,3]
[420642995,1776408004504,152.0,8.118e-05,3]
[420642996,1776408007515,150.0,8.22e-05,2]
[420642997,1776408008572,305.0,8.223e-05,3]
[420642998,1776408069123,289.0,8.223e-05,3]
[420642999,1776408072314,150.0,8.22e-05,2]
[420643000,1776408185509,150.0,8.22e-05,2]
[420643001,1776408188935,275.0,8.223e-05,3]
[420643003,1776408249454,261.0,8.223e-05,3]
[420643004,1776408251832,150.0,8.22e-05,2]
[420643005,1776408285872,1000000.0,0.00014,30]
[420643006,1776408362224,150.0,8.22e-05,2]
[420643007,1776408429147,150.0,8.22e-05,2]
[420643008,1776408529560,150.0,8.22e-05,2]
[420643009,1776408598769,150.0,8.22e-05,2]
[420643010,1776408604987,152.0,8.118e-05,3]
[420643012,1776408631977,-160.69,8.433e-05,2]
[420643013,1776408631987,-1200.0,8.481e-05,2]
[420643014,1776408631996,-153.927072,8.482e-05,2]
[420643015,1776408632006,-150.0,8.482e-05,2]
[420643016,1776408632015,-150.0,8.482e-05,2]
[420643017,1776408632024,-150.0,8.482e-05,2]
[420643018,1776408632034,-153.80598328,8.482e-05,2]
[420643019,1776408632044,-920.11,8.507e-05,2]
[420643020,1776408632054,-300.0,8.525e-05,2]
[420643021,1776408632065,-150.0,8.529e-05,2]
[420643022,1776408632075,-249.690294,8.599e-05,2]
[420643023,1776408632085,-283.88,8.82e-05,2]
[420643024,1776408632094,-1200.0,8.9e-05,3]
[420643025,1776408632104,-150.54539045,8.926e-05,2]
[420643026,1776408632114,-150.0,8.989e-05,2]
[420643027,1776408632123,-2500.0,9e-05,3]
[420643028,1776408632133,-46116.7569,9e-05,2]
[420643029,1776408632142,-2500.0,9.089e-05,2]
[420643030,1776408632152,-150.0,9.099e-05,2]
[420643032,1776408632161,-375.60216654,9.099e-05,2]
[420643033,1776408632170,-500.0,9.099e-05,2]
[420643034,1776408632180,-500.0,9.099e-05,2]
[420643035,1776408632189,-500.0,9.099e-05,2]
[420643036,1776408632199,-500.0,9.099e-05,2]
[420643038,1776408632208,-500.0,9.099e-05,2]
[420643039,1776408632218,-500.0,9.099e-05,2]
[420643041,1776408632227,-500.0,9.099e-05,2]
[420643042,1776408632236,-500.0,9.099e-05,2]
[420643043,1776408632245,-500.0,9.099e-05,2]
[420643044,1776408632254,-500.0,9.099e-05,2]
[420643046,1776408632264,-500.0,9.099e-05,2]
[420643048,1776408632273,-500.0,9.099e-05,2]
[420643050,1776408632283,-500.0,9.099e-05,2]
[420643052,1776408632292,-500.0,9.099e-05,2]
[420643054,1776408632301,-500.0,9.099e-05,2]
[420643055,1776408632311,-500.0,9.099e-05,2]
[420643056,1776408632320,-500.0,9.099e-05,2]
[420643057,1776408632330,-500.0,9.099e-05,2]
[420643058,1776408632339,-500.0,9.099e-05,2]
[420643060,1776408632348,-500.0,9.099e-05,2]
[420643062,1776408632357,-500.0,9.099e-05,2]
[420643064,1776408632367,-500.0,9.099e-05,2]
[420643066,1776408632377,-500.0,9.099e-05,2]
[420643069,1776408632386,-500.0,9.099e-05,2]
[420643070,1776408632396,-500.0,9.099e-05,2]
[420643072,1776408632404,-500.0,9.099e-05,2]
[420643075,1776408632414,-500.0,9.099e-05,2]
[420643076,1776408632424,-339.52122166,9.099e-05,2]
[420643077,1776408632433,-500.0,9.099e-05,2]
[420643078,1776408632442,-500.0,9.099e-05,2]
[420643079,1776408632451,-500.0,9.099e-05,2]
[420643080,1776408632460,-159.43234279,9.099e-05,2]
[420643081,1776408632469,-500.0,9.099e-05,2]
[420643082,1776408632478,-500.0,9.099e-05,2]
[420643083,1776408632488,-216.61936823,9.099e-05,2]
[420643084,1776408632497,-500.0,9.099e-05,2]
[420643085,1776408632507,-500.0,9.099e-05,2]
[420643086,1776408632516,-500.0,9.099e-05,2]
[420643087,1776408632526,-500.0,9.099e-05,2]
[420643088,1776408632537,-500.0,9.099e-05,2]
[420643089,1776408632546,-500.0,9.099e-05,2]
[420643090,1776408632555,-500.0,9.099e-05,2]
[420643091,1776408632565,-500.0,9.099e-05,2]
[420643092,1776408632574,-500.0,9.099e-05,2]
[420643093,1776408632584,-500.0,9.099e-05,2]
[420643094,1776408632594,-500.0,9.099e-05,2]
[420643095,1776408632605,-500.0,9.099e-05,2]
[420643096,1776408632614,-500.0,9.099e-05,2]
[420643097,1776408632623,-500.0,9.099e-05,2]
[420643098,1776408632634,-500.0,9.099e-05,2]
[420643099,1776408632644,-500.0,9.099e-05,2]
[420643100,1776408632654,-608.84904312,9.099e-05,2]
[420643101,1776408632663,-500.0,9.099e-05,2]
[420643102,1776408632672,-500.0,9.099e-05,2]
[420643103,1776408632682,-500.0,9.099e-05,2]
[420643104,1776408632691,-500.0,9.099e-05,2]
[420643105,1776408632701,-500.0,9.099e-05,2]
[420643106,1776408632710,-500.0,9.099e-05,2]
[420643107,1776408632720,-500.0,9.099e-05,2]
[420643108,1776408632729,-500.0,9.099e-05,2]
[420643109,1776408632739,-500.0,9.099e-05,2]
[420643110,1776408632748,-500.0,9.099e-05,2]
[420643111,1776408632757,-3622.0,9.1e-05,2]
[420643112,1776408632767,-53934.5595363,9.1e-05,2]
[420643113,1776408632780,-565.23403714,9.1e-05,2]
[420643114,1776408632817,-1938.21130598,9.1e-05,2]
[420643118,1776408639901,-4654.39999996,9.1e-05,2]
[420643119,1776408640006,-54074.22735281,9.1e-05,2]
[420643120,1776408640018,-42357.35242812,9.1e-05,2]
[420643135,1776408640221,-485.02570714,9.1e-05,2]
[420643143,1776408640489,-2088.11203752,9.1e-05,2]
[420643144,1776408640751,-300.0,9.1e-05,2]
[420643148,1776408646087,-500.0,9.099e-05,2]
[420643149,1776408646097,-6192.01677441,9.1e-05,2]
[420643150,1776408646153,-18033.72290876,9.1e-05,2]
[420643151,1776408646199,-9798.08691094,9.1e-05,2]
[420643201,1776408647475,-478.51655685,9.1e-05,2]
[420643202,1776408647687,-1382.08232065,9.1e-05,2]
[420643203,1776408647741,-1284.06850134,9.1e-05,2]
[420643206,1776408867779,678.907712,0.000165,30]
[420643207,1776409004318,151.0,0.000165,30]
[420643212,1776409205136,152.0,8.217e-05,3]
[420643213,1776409228206,150.0,8.295e-05,2]
[420643225,1776409295316,1600.0,8.151e-05,2]
[420643226,1776409296186,150.0,8.295e-05,2]
[420643234,1776409381723,150.0,8.297e-05,2]
[420643235,1776409459756,151671.33821231,0.000165,30]
[420643237,1776409578258,1500.0,8.186e-05,2]
[420643238,1776409788430,2000.0,8.219e-05,2]
[420643239,1776409804249,1692.71,8.096e-05,2]
[420643240,1776409804659,151.0,8.217e-05,3]
[420643245,1776409832185,-150.0,8.351e-05,2]
[420643246,1776409832195,-150.0,8.535e-05,2]
[420643247,1776409832204,-150.0,8.726e-05,2]
[420643248,1776409832214,-101.55104,8.744e-05,2]
[420643249,1776409832316,-1098.44896,8.744e-05,2]
[420643250,1776409832326,-300.0,8.744e-05,2]
[420643251,1776409832336,-300.0,8.744e-05,2]
[420643252,1776409832345,-300.0,8.745e-05,2]
[420643253,1776409832355,-1400.0,8.8e-05,3]
[420643254,1776409832365,-150.0,8.895e-05,2]
[420643255,1776409832376,-940.4706,8.9e-05,2]
[420643256,1776409832385,-2800.0,8.9e-05,3]
[420643257,1776409832394,-2500.0,8.9e-05,2]
[420643258,1776409832403,-501.26652409,8.973e-05,2]
[420643259,1776409832412,-150.0,8.997e-05,2]
[420643260,1776409832422,-905.23,8.998e-05,2]
[420643261,1776409832431,-172.42901639,8.998e-05,2]
[420643262,1776409832440,-5988.16,8.998e-05,2]
[420643263,1776409832449,-299.99,8.998e-05,2]
[420643264,1776409832458,-5867.09085796,8.998e-05,2]
[420643265,1776409832486,-531.73649619,8.998e-05,2]
[420643266,1776409832497,-3601.16264585,8.998e-05,2]
[420643267,1776409832506,-973.70269926,8.999e-05,2]
[420643270,1776409832608,-3533.1292884,8.999e-05,2]
[420643271,1776409832617,-612.92151658,8.999e-05,2]
[420643272,1776409832627,-500.0,8.999e-05,2]
[420643273,1776409832636,-351.63355776,8.999e-05,2]
[420643274,1776409832647,-500.0,8.999e-05,2]
[420643275,1776409832656,-500.0,8.999e-05,2]
[420643276,1776409832666,-344.83702648,8.999e-05,2]
[420643277,1776409832676,-500.0,8.999e-05,2]
[420643278,1776409832685,-500.0,8.999e-05,2]
[420643279,1776409832695,-500.0,8.999e-05,2]
[420643280,1776409832705,-500.0,8.999e-05,2]
[420643281,1776409832715,-271.42167484,8.999e-05,2]
[420643282,1776409832727,-228.57832516,8.999e-05,2]
[420643283,1776409832735,-500.0,8.999e-05,2]
[420643284,1776409832745,-500.0,8.999e-05,2]
[420643285,1776409832754,-500.0,8.999e-05,2]
[420643286,1776409832763,-500.0,8.999e-05,2]
[420643287,1776409832773,-500.0,8.999e-05,2]
[420643288,1776409832782,-500.0,8.999e-05,2]
[420643289,1776409832792,-500.0,8.999e-05,2]
[420643290,1776409832802,-500.0,8.999e-05,2]
[420643291,1776409832811,-500.0,8.999e-05,2]
[420643292,1776409832820,-500.0,8.999e-05,2]
[420643293,1776409832829,-150.0,8.999e-05,2]
[420643294,1776409832838,-500.0,8.999e-05,2]
[420643295,1776409832848,-500.0,8.999e-05,2]
[420643296,1776409832857,-181.76305584,8.999e-05,2]
[420643297,1776409832866,-500.0,8.999e-05,2]
[420643298,1776409832875,-500.0,8.999e-05,2]
[420643299,1776409832885,-500.0,8.999e-05,2]
[420643300,1776409832894,-500.0,8.999e-05,2]
[420643301,1776409832903,-500.0,8.999e-05,2]
[420643302,1776409832913,-500.0,8.999e-05,2]
[420643303,1776409832923,-500.0,8.999e-05,2]
[420643304,1776409832933,-500.0,8.999e-05,2]
[420643305,1776409832944,-500.0,8.999e-05,2]
[420643306,1776409832953,-500.0,8.999e-05,2]
[420643307,1776409832962,-500.0,8.999e-05,2]
[420643308,1776409832972,-500.0,8.999e-05,2]
[420643309,1776409832982,-500.0,8.999e-05,2]
[420643310,1776409832991,-500.0,8.999e-05,2]
[420643311,1776409833001,-500.0,8.999e-05,2]
[420643312,1776409833010,-500.0,8.999e-05,2]
[420643313,1776409833020,-500.0,8.999e-05,2]
[420643314,1776409833031,-500.0,8.999e-05,2]
[420643315,1776409833042,-500.0,8.999e-05,2]
[420643316,1776409833052,-500.0,8.999e-05,2]
[420643317,1776409833062,-500.0,8.999e-05,2]
[420643318,1776409833072,-500.0,8.999e-05,2]
[420643319,1776409833082,-500.0,8.999e-05,2]
[420643320,1776409833093,-500.0,8.999e-05,2]
[420643321,1776409833103,-500.0,8.999e-05,2]
[420643322,1776409833112,-500.0,8.999e-05,2]
[420643323,1776409833123,-500.0,8.999e-05,2]
[420643324,1776409833133,-500.0,8.999e-05,2]
[420643325,1776409833143,-347.05290507,8.999e-05,2]
[420643326,1776409833153,-500.0,8.999e-05,2]
[420643327,1776409833164,-500.0,8.999e-05,2]
[420643328,1776409833177,-500.0,8.999e-05,2]
[420643329,1776409833187,-500.0,8.999e-05,2]
[420643330,1776409833198,-500.0,8.999e-05,2]
[420643331,1776409833209,-500.0,8.999e-05,2]
[420643332,1776409833220,-500.0,8.999e-05,2]
[420643333,1776409833229,-500.0,8.999e-05,2]
[420643334,1776409833239,-500.0,8.999e-05,2]
[420643335,1776409833249,-500.0,8.999e-05,2]
[420643336,1776409833260,-500.0,8.999e-05,2]
[420643337,1776409833269,-500.0,8.999e-05,2]
[420643338,1776409833282,-500.0,8.999e-05,2]
[420643339,1776409833292,-350.0,8.999e-05,2]
[420643340,1776409833301,-500.0,8.999e-05,2]
[420643341,1776409833312,-500.0,8.999e-05,2]
[420643342,1776409833321,-500.0,8.999e-05,2]
[420643343,1776409833330,-500.0,8.999e-05,2]
[420643344,1776409833339,-500.0,8.999e-05,2]
[420643345,1776409833350,-500.0,8.999e-05,2]
[420643346,1776409833360,-500.0,8.999e-05,2]
[420643347,1776409833371,-34179.6553,9e-05,2]
[420643348,1776409833383,-163202.35829785,9e-05,2]
[420643349,1776409833397,-61399.58226301,9e-05,2]
[420643350,1776409833410,-55375.83189438,9e-05,2]
[420643351,1776409833423,-63721.22712387,9e-05,2]
[420643364,1776409839973,-9181.26573585,9e-05,2]
[420643374,1776409840052,-54148.92117483,9e-05,2]
[420643376,1776409840063,-42357.35242812,9e-05,2]
[420643448,1776409840902,-4516.77950097,9e-05,2]
[420643493,1776409843548,400.0,9.05e-05,7]
[420643636,1776409848299,-11619.31223683,8.899e-05,2]
[420643640,1776410075667,438822.95981864,0.000165,30]
[420643641,1776410353115,150.0,8.304e-05,2]
[420643642,1776410404426,152.0,3.003e-05,2]
[420643643,1776410404704,152.0,4.668e-05,3]
[420643644,1776410404970,152.0,6.334e-05,3]
[420643645,1776410405254,152.0,8e-05,3]
[420643646,1776410487032,653.92,8.024e-05,2]
[420643647,1776410491729,150.0,8.267e-05,2]
[420643648,1776410559090,150.0,8.267e-05,2]
[420643649,1776410583926,9850.01,8.305e-05,2]
[420643650,1776410583948,149.99,8.305e-05,2]
[420643651,1776410607570,3384.4,8.305e-05,2]
[420643652,1776410635444,150.0,8.271e-05,2]
[420643653,1776410635962,500.0,0.000165,30]
[420643654,1776410703691,150.0,8.252e-05,2]
[420643655,1776410737168,150.0,7.989e-05,2]
[420643656,1776410737218,150.0,8.167e-05,2]
[420643657,1776410776968,150.0,8.22e-05,2]
[420643658,1776410823905,500.0,0.000165,30]
[420643659,1776410844270,150.0,8.22e-05,2]
[420643662,1776410919865,150.0,8.22e-05,2]
[420643663,1776410985125,903.36,8.219e-05,2]
[420643664,1776410987360,150.0,8.22e-05,2]
[420643665,1776411004415,152.0,3.003e-05,2]
[420643666,1776411004671,152.0,5.408e-05,3]
[420643667,1776411004961,152.0,7.814e-05,3]
[420643669,1776411031504,-150.0,8.344e-05,2]
[420643670,1776411031515,-5000.0,8.427e-05,2]
[420643671,1776411031524,-150.0,8.51e-05,2]
[420643672,1776411031534,-3298.33088948,8.513e-05,2]
[420643673,1776411031544,-150.0,8.522e-05,2]
[420643674,1776411031555,-276.36167651,8.624e-05,2]
[420643675,1776411031572,-1200.0,8.624e-05,2]
[420643676,1776411031582,-500.0,8.624e-05,2]
[420643677,1776411031591,-500.0,8.624e-05,2]
[420643678,1776411031602,-500.0,8.624e-05,2]
[420643679,1776411031614,-150.0,8.624e-05,2]
[420643680,1776411031624,-500.0,8.624e-05,2]
[420643681,1776411031636,-154.44738196,8.624e-05,2]
[420643682,1776411031647,-500.0,8.624e-05,2]
[420643683,1776411031659,-500.0,8.624e-05,2]
[420643684,1776411031669,-500.0,8.624e-05,2]
[420643685,1776411031680,-526.82804619,8.624e-05,2]
[420643686,1776411031693,-150.0,8.624e-05,2]
[420643687,1776411031705,-500.0,8.625e-05,2]
[420643688,1776411031714,-500.0,8.625e-05,2]
[420643689,1776411031724,-500.0,8.625e-05,2]
[420643690,1776411031734,-500.0,8.625e-05,2]
[420643691,1776411031744,-500.0,8.625e-05,2]
[420643692,1776411031755,-630.6942654,8.625e-05,2]
[420643693,1776411031766,-501.77,8.625e-05,2]
[420643694,1776411031776,-500.0,8.625e-05,2]
[420643696,1776411031785,-584.10959855,8.625e-05,2]
[420643698,1776411031795,-150.0,8.625e-05,2]
[420643699,1776411031805,-150.0,8.625e-05,2]
[420643701,1776411031815,-226.09948749,8.625e-05,2]
[420643702,1776411031825,-2500.0,8.699e-05,2]
[420643703,1776411031835,-150.0,8.699e-05,2]
[420643704,1776411031845,-150.0,8.721e-05,2]
[420643706,1776411031855,-18270.8,8.729e-05,2]
[420643708,1776411031865,-201.0,8.757e-05,2]
[420643710,1776411031875,-717.32194628,8.762e-05,2]
[420643712,1776411031884,-500.89869851,8.773e-05,2]
[420643714,1776411031894,-157.58789548,8.773e-05,2]
[420643716,1776411031905,-501.88704047,8.773e-05,2]
[420643718,1776411031915,-151.0,8.795e-05,2]
[420643719,1776411031924,-500.0,8.797e-05,2]
[420643720,1776411031936,-500.0,8.797e-05,2]
[420643721,1776411031946,-500.0,8.797e-05,2]
[420643722,1776411031961,-500.0,8.797e-05,2]
[420643723,1776411031971,-641.03562594,8.797e-05,2]
[420643724,1776411031983,-500.0,8.797e-05,2]
[420643725,1776411031994,-500.0,8.797e-05,2]
[420643726,1776411032004,-266.62505872,8.797e-05,2]
[420643727,1776411032015,-500.0,8.797e-05,2]
[420643728,1776411032026,-500.0,8.797e-05,2]
[420643729,1776411032037,-500.0,8.797e-05,2]
[420643730,1776411032048,-500.0,8.797e-05,2]
[420643731,1776411032059,-500.0,8.797e-05,2]
[420643732,1776411032070,-500.0,8.797e-05,2]
[420643733,1776411032080,-500.0,8.797e-05,2]
[420643734,1776411032091,-500.0,8.797e-05,2]
[420643735,1776411032100,-500.0,8.797e-05,2]
[420643736,1776411032111,-500.0,8.797e-05,2]
[420643737,1776411032125,-500.0,8.797e-05,2]
[420643738,1776411032136,-500.0,8.797e-05,2]
[420643739,1776411032146,-500.0,8.797e-05,2]
[420643740,1776411032157,-500.0,8.797e-05,2]
[420643741,1776411032167,-500.0,8.797e-05,2]
[420643742,1776411032178,-500.0,8.797e-05,2]
[420643743,1776411032188,-500.0,8.797e-05,2]
[420643744,1776411032198,-500.0,8.797e-05,2]
[420643745,1776411032208,-247173.8005,8.798e-05,2]
[420643746,1776411032217,-500.0,8.798e-05,2]
[420643747,1776411032227,-500.0,8.798e-05,2]
[420643748,1776411032237,-172.1465676,8.798e-05,2]
[420643749,1776411032249,-467.94193097,8.798e-05,2]
[420643750,1776411032259,-334.58988444,8.798e-05,2]
[420643751,1776411032268,-500.0,8.798e-05,2]
[420643752,1776411032278,-3068.9329,8.799e-05,2]
[420643753,1776411032289,-309756.6912,8.799e-05,2]
[420643754,1776411032299,-2627.9045,8.799e-05,2]
[420643755,1776411032310,-1400.0,8.8e-05,3]
[420643756,1776411032320,-150.0,8.81e-05,2]
[420643757,1776411032331,-284.65101063,8.82e-05,2]
[420643758,1776411032341,-578.20924308,8.871e-05,2]
[420643759,1776411032355,-151.0,8.871e-05,2]
[420643760,1776411032366,-174.61919141,8.871e-05,2]
[420643761,1776411032377,-235.75327196,8.871e-05,2]
[420643762,1776411032386,-150.0,8.877e-05,2]
[420643763,1776411032397,-646.65982734,8.894e-05,2]
[420643764,1776411032408,-1280.88388878,8.894e-05,2]
[420643765,1776411032419,-200.0,8.894e-05,2]
[420643766,1776411032431,-151.0,8.896e-05,2]
[420643767,1776411032443,-151.0,8.896e-05,2]
[420643768,1776411032454,-153.68213857,8.899e-05,2]
[420643769,1776411032465,-501.77,8.899e-05,2]
[420643770,1776411032476,-2900.0,8.9e-05,3]
[420643771,1776411032486,-151.0,8.926e-05,2]
[420643772,1776411032498,-151.0,8.995e-05,2]
[420643773,1776411032511,-150.0,8.997e-05,2]
[420643774,1776411032522,-18368.66529923,8.998e-05,2]
[420643775,1776411032536,-45375.43745337,8.998e-05,2]
[420643776,1776411032546,-31705.77809484,8.998e-05,2]
[420643777,1776411032558,-139195.70388697,8.998e-05,2]
[420643778,1776411032570,-57763.43588529,8.998e-05,2]
[420643779,1776411032585,-3476.3698224,8.998e-05,2]
[420643780,1776411032595,-1410.518023,8.998e-05,2]
[420643781,1776411032605,-1410.518023,8.998e-05,2]
[420643782,1776411032615,-1410.518023,8.998e-05,2]
[420643783,1776411032625,-1410.518023,8.998e-05,2]
[420643784,1776411032635,-1410.518023,8.998e-05,2]
[420643785,1776411032645,-1410.518023,8.998e-05,2]
[420643786,1776411032655,-1410.518023,8.998e-05,2]
[420643787,1776411032665,-1410.518023,8.998e-05,2]
[420643788,1776411032675,-6625.7040399,8.998e-05,2]
[420643789,1776411032685,-151.0,8.998e-05,2]
[420643790,1776411032695,-151.0,8.998e-05,2]
[420643791,1776411032704,-151.0,8.998e-05,2]
[420643792,1776411032715,-151.0,8.998e-05,2]
[420643793,1776411032725,-151.0,8.998e-05,2]
[420643794,1776411032735,-151.0,8.998e-05,2]
[420643795,1776411032745,-210.077855,8.998e-05,2]
[420643796,1776411032755,-500.0,9e-05,2]
[420643797,1776411032765,-4400.0,9e-05,3]
[420643798,1776411032775,-452.68787912,9.099e-05,2]
[420643799,1776411032785,-500.0,9.099e-05,2]
[420643800,1776411032795,-1015.0,9.1e-05,5]
[420643801,1776411032808,-131206.57676091,9.1e-05,2]
[420643802,1776411032888,-736.92811915,9.1e-05,2]
[420643808,1776411038276,-2477.4142,8.629e-05,2]
[420643809,1776411038286,-200.0,8.798e-05,2]
[420643810,1776411038295,-200.0,8.798e-05,2]
[420643811,1776411038305,-200.0,8.798e-05,2]
[420643812,1776411038314,-200.0,8.798e-05,2]
[420643813,1776411038323,-200.0,8.798e-05,2]
[420643814,1776411038332,-200.0,8.798e-05,2]
[420643815,1776411038342,-200.0,8.798e-05,2]
[420643816,1776411038352,-200.0,8.798e-05,2]
[420643817,1776411038362,-200.0,8.798e-05,2]
[420643818,1776411038372,-200.0,8.798e-05,2]
[420643820,1776411038381,-200.0,8.798e-05,2]
[420643822,1776411038390,-200.0,8.798e-05,2]
[420643824,1776411038399,-200.0,8.798e-05,2]
[420643826,1776411038409,-49073.74045496,9.1e-05,2]
[420643828,1776411038420,-42357.35242812,9.1e-05,2]
[420643867,1776411039801,-200.0,8.798e-05,2]
[420643868,1776411039810,-200.0,8.798e-05,2]
[420643869,1776411039820,-200.0,8.798e-05,2]
[420643870,1776411039829,-200.0,8.798e-05,2]
[420643871,1776411039838,-200.0,8.798e-05,2]
[420643872,1776411039847,-2852.0,9.1e-05,2]
[420643883,1776411042765,-200.0,8.798e-05,2]
[420643884,1776411042775,-200.0,8.798e-05,2]
[420643885,1776411042784,-200.0,8.798e-05,2]
[420643886,1776411042794,-200.0,8.798e-05,2]
[420643887,1776411042804,-1849.864132,9.1e-05,2]
[420643888,1776411045675,-200.0,8.798e-05,2]
[420643889,1776411045684,-200.0,8.798e-05,2]
[420643890,1776411045694,-57.98682159,8.798e-05,2]
[420643891,1776411045734,-142.01317841,8.798e-05,2]
[420643892,1776411045744,-200.0,8.798e-05,2]
[420643893,1776411045755,-200.0,8.798e-05,2]
[420643894,1776411045764,-0.24023253,8.798e-05,2]
[420643900,1776411046072,-199.75976747,8.798e-05,2]
[420643901,1776411046083,-200.0,8.798e-05,2]
[420643902,1776411046093,-200.0,8.798e-05,2]
[420643903,1776411046103,-200.0,8.798e-05,2]
[420643904,1776411046112,-10243.4969525,9.1e-05,2]
[420643905,1776411046124,-12447.52767686,9.1e-05,2]
[420643944,1776411337363,500.0,8.2e-05,2]
[420643945,1776411342798,800.0,9.088e-05,7]
[420643946,1776411343118,695.32,9.088e-05,7]
[420643947,1776411351159,10000.01,8.17e-05,2]
[420643948,1776411351184,1437.03,8.17e-05,2]
[420643949,1776411448956,150.0,8.186e-05,2]
[420643950,1776411494836,150.0,8.251e-05,2]
[420643954,1776411564483,150.0,8.251e-05,2]
[420643955,1776411604684,161.0,5.851e-05,3]
[420643956,1776411604969,161.0,7.732e-05,3]
[420643957,1776411634098,150.0,8.251e-05,2]
[420643958,1776411636962,1600.0,8.096e-05,2]
[420643959,1776411657362,800.0,8.793e-05,7]